fUST/lending_fUST_20250408
["ID","MTS","AMOUNT","RATE_DAILY","PERIOD"]
[357515978,1744108239820,-500.0,0.00039773,5]
[357515979,1744108239829,-151.0,0.000398,15]
[357515980,1744108239839,-151.0,0.000398,11]
[357515981,1744108239849,-151.0,0.000398,11]
[357515982,1744108239858,-1240.631753,0.00039858,4]
[357515983,1744108239868,-160.0,0.00039868,3]
[357515984,1744108239877,-151.0,0.0003987,14]
[357515985,1744108239887,-153.482418,0.0003987,14]
[357515986,1744108239896,-151.0,0.0003987,14]
[357515987,1744108239905,-151.0,0.0003987,14]
[357515988,1744108239915,-151.0,0.0003987,14]
[357515989,1744108239924,-151.0,0.0003987,14]
[357515990,1744108239934,-151.0,0.0003987,14]
[357515991,1744108239943,-500.0,0.00039873,5]
[357515992,1744108239954,-501.37400606,0.00039873,5]
[357515993,1744108239963,-500.0,0.00039873,5]
[357515994,1744108239972,-500.0,0.00039873,5]
[357515995,1744108239985,-500.29873438,0.00039873,5]
[357515996,1744108239994,-246.81545418,0.00039873,5]
[357515997,1744108240004,-500.0,0.00039873,5]
[357515998,1744108240013,-500.0,0.00039873,5]
[357515999,1744108240023,-500.0,0.00039873,5]
[357516000,1744108240032,-500.0,0.00039873,5]
[357516001,1744108240042,-500.0,0.00039873,5]
[357516002,1744108240052,-500.0,0.00039873,5]
[357516003,1744108240062,-500.0,0.00039873,5]
[357516004,1744108240072,-603.40918821,0.00039873,5]
[357516005,1744108240082,-160.12071,0.00039873,14]
[357516006,1744108240092,-151.0,0.00039873,14]
[357516007,1744108240102,-151.0,0.00039873,2]
[357516008,1744108240112,-173.01005,0.00039873,14]
[357516009,1744108240122,-151.0,0.00039873,14]
[357516010,1744108240132,-151.201501,0.00039879,14]
[357516011,1744108240142,-285.02856,0.00039879,14]
[357516012,1744108240152,-285.02856,0.00039879,14]
[357516013,1744108240161,-151.0,0.00039879,14]
[357516014,1744108240171,-197.502526,0.00039879,14]
[357516015,1744108240180,-197.502526,0.00039879,14]
[357516016,1744108240191,-152.614406,0.00039879,14]
[357516017,1744108240200,-21212.9916915,0.0003989,3]
[357516018,1744108240209,-6577.58674307,0.000399,30]
[357516019,1744108240226,-218680.82325693,0.000399,30]
[357516020,1744108240235,-151.0,0.000399,14]
[357516021,1744108240245,-151.383446,0.000399,14]
[357516022,1744108240255,-151.0,0.000399,11]
[357516023,1744108240265,-151.0,0.000399,12]
[357516024,1744108240274,-151.0,0.000399,14]
[357516025,1744108240284,-157.083683,0.000399,14]
[357516026,1744108240293,-151.559134,0.000399,14]
[357516027,1744108240302,-151.765904,0.000399,14]
[357516028,1744108240312,-285.02856,0.000399,14]
[357516029,1744108240321,-285.02856,0.000399,14]
[357516030,1744108240330,-285.02856,0.000399,14]
[357516031,1744108240339,-285.02856,0.000399,14]
[357516032,1744108240349,-151.0,0.000399,14]
[357516033,1744108240358,-276.219598,0.000399,14]
[357516034,1744108240367,-197.502526,0.000399,14]
[357516035,1744108240377,-197.502526,0.000399,14]
[357516036,1744108240386,-197.502526,0.000399,14]
[357516037,1744108240395,-197.502526,0.000399,14]
[357516038,1744108240405,-151.0,0.000399,14]
[357516039,1744108240415,-151.0,0.000399,2]
[357516040,1744108240424,-151.0,0.000399,14]
[357516041,1744108240433,-242.386362,0.000399,14]
[357516042,1744108240442,-151.0,0.000399,14]
[357516043,1744108240452,-151.0,0.000399,14]
[357516044,1744108240460,-151.0,0.000399,14]
[357516045,1744108240470,-151.0,0.000399,14]
[357516046,1744108240479,-151.0,0.000399,14]
[357516047,1744108240488,-151.0,0.000399,14]
[357516048,1744108240498,-151.0,0.000399,15]
[357516049,1744108240507,-151.0,0.000399,20]
[357516050,1744108240516,-151.0,0.000399,14]
[357516051,1744108240525,-151.0,0.000399,14]
[357516052,1744108240535,-151.0,0.000399,14]
[357516053,1744108240544,-240.154266,0.000399,14]
[357516054,1744108240553,-2230.965176,0.000399,2]
[357516055,1744108240562,-2230.965176,0.000399,2]
[357516056,1744108240571,-151.0,0.000399,14]
[357516057,1744108240580,-151.0,0.000399,14]
[357516058,1744108240589,-473.976761,0.000399,14]
[357516059,1744108240598,-473.976761,0.000399,14]
[357516060,1744108240607,-209.268513,0.000399,14]
[357516061,1744108240616,-209.268513,0.000399,14]
[357516062,1744108240625,-151.0,0.000399,14]
[357516063,1744108240634,-2000.0,0.00039942,4]
[357516064,1744108240643,-4242.5983383,0.00039963,3]
[357516065,1744108240652,-500.0,0.00039973,5]
[357516066,1744108240662,-500.0,0.00039973,5]
[357516067,1744108240671,-500.0,0.00039973,5]
[357516068,1744108240680,-500.0,0.00039973,5]
[357516069,1744108240691,-402.35240842,0.00039973,5]
[357516070,1744108240700,-500.0,0.00039973,5]
[357516071,1744108240709,-567.89133044,0.00039973,3]
[357516072,1744108240719,-21212.9916915,0.0003999,3]
[357516074,1744108240728,-75310.82041334,0.0004,60]
[357516077,1744108240741,-610.02460827,0.0004,60]
[357516088,1744108240840,-422.958,0.00035751,30]
[357516090,1744108240849,-1164.40026239,0.00039769,2]
[357516092,1744108240859,-9003.20749167,0.0004,60]
[357516094,1744108240868,-300.0,0.0004,14]
[357516096,1744108240877,-32054.65500789,0.0004,2]
[357516098,1744108240889,-855.44247854,0.0004,2]
[357516297,1744108246939,-322.7826615,0.00035751,30]
[357516301,1744108580950,10000.0,0.00018,2]
[357516349,1744109241096,-287.0,0.00029,8]
[357516350,1744109241119,-269.07851396,0.00030025,2]
[357516351,1744109241143,-500.0,0.00032973,5]
[357516352,1744109241166,-500.0,0.00032973,5]
[357516353,1744109241189,-1503.9659699,0.00033,5]
[357516354,1744109244124,-1426.88328072,0.00033,5]
[357516355,1744109362114,-270.19567,0.00031395,2]
[357516356,1744109362136,-132.49498386,0.00031864,2]
[357516357,1744109364110,-267.50501614,0.00031864,2]
[357516358,1744109364132,-152.86744577,0.00031866,2]
[357516360,1744109403341,7000.0,0.00018,2]
[357516365,1744109431787,-491.93975107,0.00031664,2]
[357516366,1744109437936,-1651.24256363,0.00031664,2]
[357516367,1744109437946,-400.0,0.00031864,2]
[357516368,1744109437955,-9890.46465063,0.00031866,2]
[357516369,1744109437964,-812.86907204,0.00032899,2]
[357516370,1744109437974,-4602.35366937,0.000329,10]
[357516371,1744109437983,-500.0,0.00032973,5]
[357516372,1744109437992,-500.0,0.00032973,5]
[357516373,1744109438002,-500.0,0.00032973,5]
[357516374,1744109438011,-500.0,0.00032973,5]
[357516375,1744109438020,-500.0,0.00032973,5]
[357516376,1744109438030,-500.0,0.00032973,5]
[357516377,1744109438040,-500.0,0.00032973,5]
[357516378,1744109438049,-1243.92,0.0003298,3]
[357516379,1744109438059,-500.0,0.00032989,7]
[357516380,1744109438069,-500.0,0.00032989,7]
[357516381,1744109438078,-500.0,0.00032989,7]
[357516382,1744109438088,-500.0,0.00032989,7]
[357516383,1744109438097,-339.52903144,0.00032989,7]
[357516385,1744109438270,-500.0,0.00032989,2]
[357516386,1744109438285,-500.0,0.00032989,7]
[357516387,1744109438296,-500.0,0.00032989,2]
[357516388,1744109438306,-579.46987336,0.00032989,7]
[357516389,1744109438316,-500.0,0.00032989,7]
[357516390,1744109438326,-500.0,0.00032989,7]
[357516391,1744109438339,-500.0,0.00032989,7]
[357516392,1744109438349,-500.0,0.00032989,7]
[357516393,1744109438358,-500.0,0.00032989,2]
[357516394,1744109438369,-418.03311107,0.00032989,7]
[357516395,1744109438387,-570.33946229,0.00032989,7]
[357516396,1744109438397,-224.62859638,0.00032989,7]
[357516397,1744109438407,-500.0,0.00032989,2]
[357516398,1744109438417,-500.0,0.00032989,7]
[357516399,1744109438426,-500.0,0.00032989,2]
[357516400,1744109438436,-500.0,0.00032989,7]
[357516401,1744109438446,-500.0,0.00032989,2]
[357516402,1744109438455,-500.0,0.00032989,7]
[357516403,1744109438465,-500.0,0.00032989,2]
[357516404,1744109438475,-500.0,0.00032989,7]
[357516405,1744109438485,-500.0,0.00032989,2]
[357516406,1744109438494,-500.0,0.00032989,2]
[357516407,1744109438504,-500.0,0.00032989,7]
[357516408,1744109438513,-500.0,0.00032989,2]
[357516409,1744109438523,-500.0,0.00032989,7]
[357516410,1744109438532,-500.0,0.00032989,2]
[357516411,1744109438542,-500.0,0.00032989,7]
[357516412,1744109438552,-468.04901458,0.00032989,2]
[357516413,1744109438565,-31.95098542,0.00032989,2]
[357516414,1744109438574,-500.0,0.00032989,7]
[357516415,1744109438584,-500.0,0.00032989,2]
[357516416,1744109438595,-500.0,0.00032989,7]
[357516417,1744109438605,-500.0,0.00032989,2]
[357516418,1744109438614,-500.0,0.00032989,2]
[357516419,1744109438624,-160.76275178,0.00032989,2]
[357516420,1744109438636,-339.23724822,0.00032989,2]
[357516421,1744109438647,-500.0,0.00032989,2]
[357516422,1744109438668,-500.0,0.00032989,2]
[357516423,1744109438679,-500.0,0.00032989,2]
[357516424,1744109438689,-293.5550484,0.00032989,2]
[357516425,1744109438699,-500.0,0.00032989,2]
[357516426,1744109438709,-500.0,0.00032989,2]
[357516427,1744109438719,-500.0,0.00032989,2]
[357516428,1744109438728,-500.0,0.00032989,2]
[357516429,1744109438738,-500.0,0.00032989,2]
[357516430,1744109438748,-500.0,0.00032989,2]
[357516431,1744109438757,-500.0,0.00032989,2]
[357516432,1744109438767,-500.0,0.00032989,2]
[357516433,1744109438777,-500.0,0.00032989,2]
[357516434,1744109438787,-500.0,0.00032989,2]
[357516435,1744109438797,-500.0,0.00032989,2]
[357516436,1744109438806,-500.0,0.00032989,2]
[357516437,1744109438816,-500.0,0.00032989,2]
[357516438,1744109438826,-500.0,0.00032989,2]
[357516439,1744109438835,-500.0,0.00032989,2]
[357516440,1744109438845,-500.0,0.00032989,2]
[357516441,1744109438855,-3487.3,0.0003299,3]
[357516442,1744109438864,-5533.97720667,0.0003299,2]
[357516443,1744109438884,-784.5354064,0.0003299,2]
[357516444,1744109438896,-402217.68368493,0.0003299,2]
[357516445,1744109438905,-500.0,0.00032999,7]
[357516446,1744109438915,-500.0,0.00032999,7]
[357516447,1744109438924,-500.0,0.00032999,7]
[357516448,1744109438933,-302.34279027,0.00032999,7]
[357516449,1744109438943,-387603.15074938,0.00033,5]
[357516450,1744109438952,-1986.75990107,0.00033099,2]
[357516451,1744109438961,-542.26640077,0.00033199,2]
[357516452,1744109438971,-19121.62686592,0.000333,5]
[357516453,1744109438981,-220.0,0.00034277,2]
[357516454,1744109438990,-2487.84,0.0003435,3]
[357516455,1744109439000,-50000.0,0.0003436,2]
[357516456,1744109439010,-837.41003169,0.00034859,2]
[357516457,1744109439019,-542.26640074,0.00034874,2]
[357516458,1744109439029,-500.0,0.00035773,2]
[357516459,1744109439039,-500.0,0.00035773,2]
[357516460,1744109439049,-500.0,0.00035773,5]
[357516461,1744109439059,-402.35240842,0.00035773,5]
[357516462,1744109439068,-500.0,0.00035773,5]
[357516463,1744109439077,-500.0,0.00035773,5]
[357516464,1744109439087,-500.0,0.00035773,5]
[357516465,1744109439096,-500.0,0.00035773,5]
[357516466,1744109439106,-567.89133044,0.00035773,3]
[357516467,1744109439115,-500.0,0.00035773,5]
[357516468,1744109439125,-51761.50042794,0.000358,30]
[357516470,1744109440090,-3966.02,0.0003298,3]
[357516471,1744109440100,-7932.04,0.0003435,3]
[357516472,1744109440110,-76391.35429318,0.000358,30]
[357516473,1744109440122,-77529.82623492,0.000358,30]
[357516490,1744109442958,-500.0,0.00032989,2]
[357516491,1744109442968,-19548.66091178,0.000358,30]
[357516492,1744109443013,-2018.03813218,0.000358,30]
[357516493,1744109443022,-807.03,0.000358,7]
[357516494,1744109443032,-151.0,0.000358,14]
[357516495,1744109443041,-151.0,0.000358,14]
[357516496,1744109443050,-188.341662,0.000358,14]
[357516498,1744109443060,-242.386362,0.000358,14]
[357516500,1744109443070,-188.341662,0.000358,14]
[357516501,1744109443079,-589.54386004,0.00035862,2]
[357516502,1744109443089,-819.3,0.00035887,30]
[357516503,1744109443099,-217.44,0.000359,2]
[357516504,1744109443108,-109.46483978,0.00036061,15]
[357516511,1744109445943,-324.89803351,0.00035887,30]
[357516514,1744110393107,-451.334134,0.00025205,2]
[357516515,1744110427094,-48.665866,0.00025205,2]
[357516516,1744110427114,-178.309589,0.00029466,2]
[357516517,1744110427135,-195.04054842,0.00029613,2]
[357516518,1744110446137,-160.0,0.00029605,2]
[357516519,1744110446159,-104.95945158,0.00029613,2]
[357516520,1744110446180,-41.04499681,0.00029614,2]
[357516525,1744110632295,-603.9562859,0.00028956,2]
[357516526,1744110632304,-215.35464378,0.00028956,2]
[357516528,1744110638051,-54.84102722,0.00028956,2]
[357516529,1744110638064,-300.0,0.00029593,2]
[357516530,1744110638077,-1931.45570573,0.00029594,2]
[357516531,1744110638091,-4245.72173351,0.00029594,2]
[357516532,1744110638155,-18461.12806866,0.00029594,2]
[357516533,1744110638166,-4770.75550219,0.00029614,2]
[357516534,1744110638177,-1986.75990107,0.00030924,2]
[357516535,1744110638190,-455.9959566,0.00031023,2]
[357516536,1744110638201,-837.41003169,0.00031338,2]
[357516537,1744110638211,-2397.65,0.00031453,3]
[357516538,1744110638224,-1198.82,0.00031453,3]
[357516539,1744110638237,-599.41,0.00031453,3]
[357516540,1744110638248,-299.71,0.00031453,3]
[357516541,1744110638260,-899.13,0.00031453,3]
[357516542,1744110638271,-78148.8914089,0.00031463,2]
[357516543,1744110638282,-3523.57527362,0.00031463,2]
[357516544,1744110638292,-157.55923456,0.00031465,2]
[357516545,1744110638303,-3399.08204951,0.00031465,2]
[357516546,1744110638314,-500.0,0.00031465,2]
[357516547,1744110638325,-3399.08204951,0.00031465,2]
[357516548,1744110638336,-3399.08204951,0.00031465,2]
[357516549,1744110638347,-500.0,0.00031465,2]
[357516550,1744110638365,-3399.08204951,0.00031465,2]
[357516551,1744110638375,-339.1868432,0.00031465,2]
[357516552,1744110638385,-3399.08204951,0.00031465,2]
[357516553,1744110638396,-3399.08204951,0.00031465,2]
[357516554,1744110638408,-3399.08204951,0.00031465,2]
[357516555,1744110638419,-500.0,0.00031465,2]
[357516556,1744110638430,-3399.08204951,0.00031465,2]
[357516557,1744110638440,-3399.08204951,0.00031465,2]
[357516558,1744110638450,-3399.08204951,0.00031465,2]
[357516559,1744110638460,-3399.08204951,0.00031465,2]
[357516560,1744110638471,-3399.08204951,0.00031465,2]
[357516561,1744110638481,-3399.08204951,0.00031465,2]
[357516562,1744110638492,-3399.08204951,0.00031465,2]
[357516563,1744110638502,-3399.08204951,0.00031465,2]
[357516564,1744110638513,-3399.08204951,0.00031465,2]
[357516565,1744110638524,-3399.08204951,0.00031465,2]
[357516566,1744110638534,-3399.08204951,0.00031465,2]
[357516567,1744110638545,-3399.08204951,0.00031465,2]
[357516568,1744110638555,-3399.08204951,0.00031465,2]
[357516569,1744110638565,-3399.08204951,0.00031465,2]
[357516570,1744110638576,-3399.08204951,0.00031465,2]
[357516571,1744110638586,-3399.08204951,0.00031465,2]
[357516572,1744110638597,-3399.08204951,0.00031465,2]
[357516573,1744110638608,-3399.08204951,0.00031465,2]
[357516574,1744110638619,-3399.08204951,0.00031465,2]
[357516575,1744110638630,-3399.08204951,0.00031465,2]
[357516576,1744110638640,-3399.08204951,0.00031465,2]
[357516577,1744110638651,-3399.08204951,0.00031465,2]
[357516578,1744110638661,-3399.08204951,0.00031465,2]
[357516579,1744110638672,-3399.08204951,0.00031465,2]
[357516580,1744110638684,-3399.08204951,0.00031465,2]
[357516581,1744110638695,-3399.08204951,0.00031465,2]
[357516582,1744110638706,-3399.08204951,0.00031465,2]
[357516583,1744110638719,-3399.08204951,0.00031465,2]
[357516584,1744110638731,-3399.08204951,0.00031465,2]
[357516585,1744110638742,-3399.08204951,0.00031465,2]
[357516586,1744110638752,-3399.08204951,0.00031465,2]
[357516587,1744110638764,-3399.08204951,0.00031465,2]
[357516588,1744110638775,-3399.08204951,0.00031465,2]
[357516589,1744110638785,-3399.08204951,0.00031465,2]
[357516590,1744110638796,-3399.08204951,0.00031465,2]
[357516591,1744110638808,-3399.08204951,0.00031465,2]
[357516592,1744110638820,-3399.08204951,0.00031465,2]
[357516593,1744110638830,-3399.08204951,0.00031465,2]
[357516594,1744110638840,-3399.08204951,0.00031465,2]
[357516595,1744110638851,-3399.08204951,0.00031465,2]
[357516596,1744110638862,-3399.08204951,0.00031465,2]
[357516597,1744110638873,-3399.08204951,0.00031465,2]
[357516598,1744110638884,-3399.08204951,0.00031465,2]
[357516599,1744110638894,-3399.08204951,0.00031465,2]
[357516600,1744110638905,-3399.08204951,0.00031465,2]
[357516601,1744110638915,-3399.08204951,0.00031465,2]
[357516602,1744110638925,-3399.08204951,0.00031465,2]
[357516603,1744110638937,-3399.08204951,0.00031465,2]
[357516604,1744110638947,-3399.08204951,0.00031465,2]
[357516605,1744110638958,-3399.08204951,0.00031465,2]
[357516606,1744110638969,-3399.08204951,0.00031465,2]
[357516607,1744110638980,-3399.08204951,0.00031465,2]
[357516608,1744110638991,-3399.08204951,0.00031465,2]
[357516609,1744110639000,-3399.08204951,0.00031465,2]
[357516610,1744110639010,-3399.08204951,0.00031465,2]
[357516611,1744110639019,-3399.08204951,0.00031465,2]
[357516612,1744110639028,-3399.08204951,0.00031465,2]
[357516613,1744110639038,-3399.08204951,0.00031465,2]
[357516614,1744110639047,-3399.08204951,0.00031465,2]
[357516615,1744110639219,-38294.03127243,0.00031466,2]
[357516616,1744110639235,-353.68552863,0.00031473,5]
[357516617,1744110639247,-500.0,0.00031473,5]
[357516618,1744110639257,-500.0,0.00031473,5]
[357516619,1744110639267,-500.0,0.00031473,5]
[357516620,1744110639276,-500.0,0.00031473,2]
[357516621,1744110639285,-505.19260594,0.00031473,5]
[357516622,1744110639295,-500.0,0.00031473,5]
[357516623,1744110639304,-500.0,0.00031473,5]
[357516624,1744110639314,-500.0,0.00031473,5]
[357516625,1744110639324,-500.0,0.00031473,5]
[357516626,1744110639333,-500.0,0.00031473,5]
[357516627,1744110639342,-250.0,0.00031566,2]
[357516628,1744110639351,-4591.81415891,0.000319,10]
[357516629,1744110639361,-326.0,0.00031908,2]
[357516630,1744110639370,-6579.26025965,0.00032368,4]
[357516631,1744110639380,-500.0,0.00032433,5]
[357516632,1744110639398,-504.38570631,0.00032433,5]
[357516633,1744110639407,-900.98593478,0.00032736,2]
[357516634,1744110639417,-12530.86563381,0.00032823,3]
[357516635,1744110639427,-4795.3,0.00032823,3]
[357516636,1744110639437,-2397.64,0.00032823,3]
[357516637,1744110639446,-1198.82,0.00032823,3]
[357516638,1744110639456,-599.42,0.00032823,3]
[357516639,1744110639465,-500.0,0.00032873,5]
[357516640,1744110639475,-176.63289306,0.00032925,7]
[357516641,1744110639485,-500.0,0.00032925,7]
[357516642,1744110639494,-455.39651976,0.00032925,7]
[357516643,1744110639504,-500.0,0.00032925,7]
[357516644,1744110639514,-500.0,0.00032925,7]
[357516645,1744110639523,-312595.565636,0.00032926,2]
[357516646,1744110639534,-24665.0269153,0.00032926,2]
[357516647,1744110639543,-151.0,0.00032926,14]
[357516648,1744110639553,-151.0,0.00032933,2]
[357516649,1744110639563,-151.0,0.00032952,14]
[357516650,1744110639573,-240.154266,0.00032952,14]
[357516651,1744110639582,-151.0,0.00032953,14]
[357516652,1744110639592,-151.0,0.00032953,14]
[357516653,1744110639601,-151.0,0.00032953,14]
[357516654,1744110639611,-151.0,0.00032953,14]
[357516655,1744110639621,-151.0,0.00032953,14]
[357516656,1744110639630,-151.0,0.00032953,14]
[357516657,1744110639640,-151.0,0.00032953,14]
[357516658,1744110639650,-151.0,0.00032953,14]
[357516659,1744110639659,-151.0,0.00032953,14]
[357516660,1744110639669,-3523.57527362,0.00032956,2]
[357516661,1744110639680,-152.26,0.00032958,2]
[357516662,1744110639690,-151.0,0.00032963,14]
[357516663,1744110639700,-151.0,0.00032966,14]
[357516664,1744110639711,-256.525704,0.00032966,14]
[357516665,1744110639725,-256.525704,0.00032966,14]
[357516666,1744110639744,-151.0,0.00032966,14]
[357516667,1744110639755,-151.0,0.00032966,14]
[357516668,1744110639765,-151.0,0.00032966,2]
[357516669,1744110639775,-2200.873741,0.00032966,2]
[357516670,1744110639785,-2200.873741,0.00032966,2]
[357516671,1744110639794,-151.559134,0.00032968,14]
[357516672,1744110639804,-151.765904,0.00032968,14]
[357516673,1744110639814,-151.0,0.00032968,14]
[357516674,1744110639823,-151.383446,0.00032968,14]
[357516675,1744110639833,-621.8592574,0.00032973,5]
[357516676,1744110639843,-500.0,0.00032973,2]
[357516677,1744110639853,-500.0,0.00032973,5]
[357516678,1744110639863,-503.74555423,0.00032973,2]
[357516679,1744110639873,-260.01384661,0.00032973,5]
[357516680,1744110639882,-500.0,0.00032973,5]
[357516682,1744110639892,-157.083683,0.00032978,14]
[357516683,1744110639902,-177.752273,0.00032978,14]
[357516684,1744110639911,-177.752273,0.00032978,14]
[357516685,1744110639921,-151.0,0.00032978,14]
[357516686,1744110639933,-151.0,0.00032978,14]
[357516687,1744110639942,-412.83006671,0.00033274,5]
[357516688,1744110639952,-500.0,0.00033274,5]
[357516689,1744110639962,-500.0,0.00033895,5]
[357516690,1744110639971,-428.4457084,0.00033895,5]
[357516691,1744110639981,-188.0,0.00034302,2]
[357516692,1744110639990,-419.46366559,0.00034308,3]
[357516693,1744110640000,-151.0,0.000344,17]
[357516694,1744110640010,-900.98593474,0.00034527,2]
[357516695,1744110640020,-151.0,0.000347,17]
[357516696,1744110640030,-151.0,0.000349,15]
[357516697,1744110640040,-151.0,0.000352,16]
[357516698,1744110640050,-766.04285,0.00035465,30]
[357516699,1744110640059,-151.0,0.000355,17]
[357516700,1744110640069,-500.0,0.00035773,5]
[357516701,1744110640078,-500.0,0.00035773,5]
[357516702,1744110640088,-500.0,0.00035773,5]
[357516703,1744110640098,-500.0,0.00035773,5]
[357516704,1744110640107,-500.0,0.00035773,5]
[357516705,1744110640117,-500.0,0.00035773,5]
[357516706,1744110640127,-500.0,0.00035773,5]
[357516707,1744110640137,-500.0,0.00035773,5]
[357516708,1744110640147,-500.0,0.00035773,5]
[357516709,1744110640156,-500.0,0.00035773,5]
[357516710,1744110640166,-500.0,0.00035773,5]
[357516711,1744110640176,-500.0,0.00035773,5]
[357516712,1744110640188,-500.0,0.00035773,5]
[357516713,1744110640198,-500.0,0.00035773,5]
[357516714,1744110640209,-500.0,0.00035773,5]
[357516715,1744110640219,-500.00000009,0.00035773,5]
[357516716,1744110640229,-500.0,0.00035773,5]
[357516717,1744110640238,-567.89133044,0.00035773,3]
[357516718,1744110640248,-151.0,0.00035773,3]
[357516719,1744110640258,-202.65539935,0.00035773,3]
[357516720,1744110640268,-200.0,0.00035773,3]
[357516721,1744110640277,-207.4,0.00035773,3]
[357516722,1744110640288,-215.0738,0.00035773,3]
[357516723,1744110640297,-223.0315306,0.00035773,3]
[357516724,1744110640307,-231.28369723,0.00035773,3]
[357516725,1744110640316,-473.73413038,0.00035773,3]
[357516726,1744110640325,-3523.57527362,0.0003578,3]
[357516727,1744110640335,-198.522765,0.0003579,14]
[357516728,1744110640344,-151.0,0.0003579,14]
[357516729,1744110640353,-256.525704,0.0003579,14]
[357516730,1744110640363,-256.525704,0.0003579,14]
[357516731,1744110640372,-151.0,0.0003579,14]
[357516732,1744110640382,-151.0,0.0003579,14]
[357516733,1744110640392,-151.0,0.0003579,2]
[357516734,1744110640402,-2200.873741,0.0003579,2]
[357516735,1744110640411,-2200.873741,0.0003579,2]
[357516736,1744110640421,-17617.8763681,0.0003579,3]
[357516737,1744110640432,-726.32,0.000358,7]
[357516738,1744110640443,-106326.03522773,0.000358,30]
[357516739,1744110640458,-337.90960781,0.000358,30]
[357516740,1744110640530,-700.2151947,0.00031453,2]
[357516741,1744110640565,-523.59654883,0.00031453,2]
[357516750,1744110643176,-4867.2977,0.00031453,2]
[357516751,1744110643230,-5165.01658801,0.00031453,2]
[357516752,1744110643242,-38743.87396846,0.00031453,2]
[357516753,1744110643253,-151.0,0.00032926,14]
[357516754,1744110643262,-678.3,0.00035465,30]
[357516755,1744110643272,-16905.77829514,0.000358,30]
[357516756,1744110643336,-87424.90686932,0.000358,30]
[357516758,1744110643346,-151.0,0.000358,14]
[357516760,1744110643355,-177.752273,0.000358,14]
[357516762,1744110643364,-177.752273,0.000358,14]
[357516764,1744110643373,-151.0,0.000358,14]
[357516765,1744110643382,-256.525704,0.000358,14]
[357516767,1744110643391,-256.525704,0.000358,14]
[357516769,1744110643400,-151.0,0.000358,14]
[357516770,1744110643409,-151.0,0.000358,14]
[357516771,1744110643418,-151.0,0.000358,14]
[357516772,1744110643428,-174.926434,0.000358,14]
[357516773,1744110643437,-151.0,0.000358,2]
[357516774,1744110643446,-2200.873741,0.000358,2]
[357516775,1744110643456,-2200.873741,0.000358,2]
[357516776,1744110643465,-151.0,0.000358,14]
[357516777,1744110643474,-151.0,0.000358,14]
[357516778,1744110643483,-151.0,0.000358,14]
[357516779,1744110643492,-151.0,0.000358,14]
[357516780,1744110643501,-151.0,0.000358,14]
[357516781,1744110643511,-262.292054,0.000358,14]
[357516782,1744110643520,-276.219598,0.000358,14]
[357516783,1744110643529,-151.0,0.000358,14]
[357516784,1744110643538,-151.0,0.000358,14]
[357516785,1744110643547,-151.0,0.000358,14]
[357516786,1744110643557,-151.0,0.000358,14]
[357516787,1744110643566,-336.266413,0.0003589,2]
[357516788,1744110643576,-151.2,0.000359,2]
[357516789,1744110643585,-1300.0,0.00036,2]
[357516790,1744110643594,-358.12,0.00036,2]
[357516791,1744110643604,-180.0,0.00036061,15]
[357516792,1744110643613,-1286.91736596,0.000362,98]
[357516793,1744110643622,-900.98593474,0.00036318,2]
[357516794,1744110643632,-500.0,0.00036952,5]
[357516795,1744110643641,-479.30281164,0.00036952,5]
[357516796,1744110643651,-1000.0,0.00036952,5]